[Event "Late-Titled-Tuesday-Blitz-February-06-2024"]
[Site "Chess.com"]
[Date "2024.02.06"]
[Round "9"]
[White "ChessFanNM"]
[Black "emeli_chess"]
[Result "1-0"]
[WhiteElo "2338"]
[BlackElo "2353"]
[TimeControl "180+1"]
[EndTime "15:43:26 PST"]
[Termination "ChessFanNM won by resignation"]

1. a3 {[%clk 0:01:43.4]} 1... e5 {[%clk 0:02:56.8]} 2. e4 {[%clk 0:01:18.3]}
2... Nc6 {[%clk 0:02:53.8]} 3. Nf3 {[%clk 0:01:17.4]} 3... Nf6 {[%clk
0:02:49.1]} 4. Nc3 {[%clk 0:01:17.4]} 4... Be7 {[%clk 0:02:48.2]} 5. Bb5 {[%clk
0:01:15.1]} 5... d6 {[%clk 0:02:45]} 6. h3 {[%clk 0:01:13.7]} 6... Bd7 {[%clk
0:02:44.5]} 7. O-O {[%clk 0:01:10.7]} 7... a6 {[%clk 0:02:44.2]} 8. Bxc6 {[%clk
0:01:09.9]} 8... Bxc6 {[%clk 0:02:44.1]} 9. d3 {[%clk 0:01:10]} 9... O-O {[%clk
0:02:43.4]} 10. Ne2 {[%clk 0:01:07.7]} 10... b5 {[%clk 0:02:39.8]} 11. Kh1
{[%clk 0:01:04.2]} 11... Bb7 {[%clk 0:02:39.1]} 12. Nh2 {[%clk 0:01:02.3]} 12...
d5 {[%clk 0:02:31.4]} 13. f3 {[%clk 0:01:01.1]} 13... c5 {[%clk 0:02:26.1]} 14.
Ng3 {[%clk 0:00:56.1]} 14... Re8 {[%clk 0:02:23.6]} 15. Nf5 {[%clk 0:00:54.9]}
15... Bf8 {[%clk 0:02:23.7]} 16. Qe1 {[%clk 0:00:54.9]} 16... Nh5 {[%clk
0:02:07.3]} 17. a4 {[%clk 0:00:34.7]} 17... c4 {[%clk 0:02:01.8]} 18. axb5
{[%clk 0:00:31.8]} 18... axb5 {[%clk 0:02:01.6]} 19. Rxa8 {[%clk 0:00:31.1]}
19... Bxa8 {[%clk 0:02:01.6]} 20. Bd2 {[%clk 0:00:27.1]} 20... h6 {[%clk
0:01:52.5]} 21. Ba5 {[%clk 0:00:21.3]} 21... Qf6 {[%clk 0:01:48.2]} 22. Ng4
{[%clk 0:00:20.5]} 22... Qg5 {[%clk 0:01:41.2]} 23. Bd2 {[%clk 0:00:20.5]} 23...
Qd8 {[%clk 0:01:38.1]} 24. Ba5 {[%clk 0:00:20.4]} 24... Qd7 {[%clk 0:01:27.5]}
25. Qh4 {[%clk 0:00:20.3]} 25... Nf4 {[%clk 0:01:25.9]} 26. Nfxh6+ {[%clk
0:00:19.4]} 26... Kh7 {[%clk 0:01:05]} 27. Nxf7+ {[%clk 0:00:19.1]} 27... Kg6
{[%clk 0:00:59.8]} 28. Nfxe5+ {[%clk 0:00:17.5]} 1-0

[Event "Late-Titled-Tuesday-Blitz-February-06-2024"]
[Site "Chess.com"]
[Date "2024.02.06"]
[Round "9"]
[White "Nouali_Mohamed"]
[Black "pr1105"]
[Result "1-0"]
[WhiteElo "2576"]
[BlackElo "2421"]
[TimeControl "180+1"]
[EndTime "15:43:34 PST"]
[Termination "Nouali_Mohamed won on time"]

1. e4 {[%clk 0:03:00]} 1... e5 {[%clk 0:03:00.2]} 2. Bc4 {[%clk 0:02:59.3]} 2...
Nf6 {[%clk 0:02:59.7]} 3. Nc3 {[%clk 0:02:59.6]} 3... Nc6 {[%clk 0:02:59.2]} 4.
d3 {[%clk 0:02:59.2]} 4... Na5 {[%clk 0:02:58.9]} 5. Qf3 {[%clk 0:02:58.9]} 5...
c6 {[%clk 0:02:55.7]} 6. Nge2 {[%clk 0:02:58]} 6... b5 {[%clk 0:02:37.1]} 7. Bb3
{[%clk 0:02:56.4]} 7... b4 {[%clk 0:02:37.1]} 8. Nd1 {[%clk 0:02:52.6]} 8... d5
{[%clk 0:02:14]} 9. Ne3 {[%clk 0:02:46.4]} 9... dxe4 {[%clk 0:02:02]} 10. dxe4
{[%clk 0:02:46.7]} 10... Ba6 {[%clk 0:01:39.2]} 11. Ng3 {[%clk 0:02:45.8]} 11...
g6 {[%clk 0:01:34.7]} 12. Bd2 {[%clk 0:02:32.9]} 12... Be7 {[%clk 0:01:31]} 13.
h4 {[%clk 0:02:24.1]} 13... h5 {[%clk 0:01:28.4]} 14. O-O-O {[%clk 0:02:24.1]}
14... Qb6 {[%clk 0:01:14.9]} 15. Ngf5 {[%clk 0:01:45.7]} 15... gxf5 {[%clk
0:01:02.9]} 16. Nxf5 {[%clk 0:01:46.6]} 16... Nxb3+ {[%clk 0:00:45.3]} 17. axb3
{[%clk 0:01:47.5]} 17... c5 {[%clk 0:00:31.2]} 18. Bg5 {[%clk 0:01:32.3]} 18...
Bc8 {[%clk 0:00:13]} 19. Nxe7 {[%clk 0:00:59]} 19... Kxe7 {[%clk 0:00:13.1]} 20.
Rd5 {[%clk 0:00:59.3]} 20... Qe6 {[%clk 0:00:04.9]} 21. Rhd1 {[%clk 0:00:41.9]}
1-0

[Event "Late-Titled-Tuesday-Blitz-February-06-2024"]
[Site "Chess.com"]
[Date "2024.02.06"]
[Round "9"]
[White "hakanazeri2"]
[Black "Seochesspie"]
[Result "1/2-1/2"]
[WhiteElo "2642"]
[BlackElo "2781"]
[TimeControl "180+1"]
[EndTime "15:43:43 PST"]
[Termination "Game drawn by repetition"]

1. Nf3 {[%clk 0:03:00.9]} 1... Nf6 {[%clk 0:02:59.4]} 2. c4 {[%clk 0:03:00.8]}
2... g6 {[%clk 0:02:57.7]} 3. Nc3 {[%clk 0:03:00.6]} 3... Bg7 {[%clk 0:02:57.7]}
4. e4 {[%clk 0:03:00.8]} 4... c5 {[%clk 0:02:58]} 5. d4 {[%clk 0:03:00.6]} 5...
cxd4 {[%clk 0:02:58.3]} 6. Nxd4 {[%clk 0:03:01.2]} 6... Nc6 {[%clk 0:02:56.1]}
7. Be3 {[%clk 0:02:59.8]} 7... d6 {[%clk 0:02:49.4]} 8. Be2 {[%clk 0:02:58.8]}
8... O-O {[%clk 0:02:48.2]} 9. O-O {[%clk 0:02:58.6]} 9... Nxd4 {[%clk
0:02:48.2]} 10. Bxd4 {[%clk 0:02:58.5]} 10... a5 {[%clk 0:02:49.1]} 11. Qd2
{[%clk 0:02:56.1]} 11... a4 {[%clk 0:02:48.1]} 12. f3 {[%clk 0:02:53.1]} 12...
Qa5 {[%clk 0:02:46.1]} 13. Rfd1 {[%clk 0:02:51.2]} 13... Be6 {[%clk 0:02:46.1]}
14. Nb5 {[%clk 0:02:44.6]} 14... Rfc8 {[%clk 0:02:39.1]} 15. Qxa5 {[%clk
0:02:39.6]} 15... Rxa5 {[%clk 0:02:39.1]} 16. b4 {[%clk 0:02:25.6]} 16... axb3
{[%clk 0:02:25.3]} 17. axb3 {[%clk 0:02:24]} 17... Rca8 {[%clk 0:02:25.8]} 18.
Nc7 {[%clk 0:01:59.3]} 18... Rxa1 {[%clk 0:02:23.3]} 19. Rxa1 {[%clk 0:02:00.2]}
19... Rxa1+ {[%clk 0:02:23]} 20. Bxa1 {[%clk 0:02:01.1]} 20... Nd7 {[%clk
0:02:16.7]} 21. Bxg7 {[%clk 0:01:53.7]} 21... Kxg7 {[%clk 0:02:17.6]} 22. Kf2
{[%clk 0:01:50.4]} 22... Nc5 {[%clk 0:02:16.3]} 23. b4 {[%clk 0:01:47.1]} 23...
Na6 {[%clk 0:02:16.2]} 24. Nxa6 {[%clk 0:01:39.2]} 24... bxa6 {[%clk 0:02:14.8]}
25. Ke3 {[%clk 0:01:37.3]} 25... Kf8 {[%clk 0:02:14.3]} 26. Kd4 {[%clk
0:01:37.2]} 26... Ke8 {[%clk 0:02:13.4]} 27. c5 {[%clk 0:01:37.6]} 27... Bc8
{[%clk 0:02:10.9]} 28. Bc4 {[%clk 0:01:24.4]} 28... g5 {[%clk 0:02:06.5]} 29. g3
{[%clk 0:01:11.6]} 29... h6 {[%clk 0:02:05.1]} 30. f4 {[%clk 0:00:52.9]} 30...
gxf4 {[%clk 0:02:04.7]} 31. gxf4 {[%clk 0:00:53.8]} 31... f6 {[%clk 0:02:04.3]}
32. e5 {[%clk 0:00:47.3]} 32... fxe5+ {[%clk 0:02:03.1]} 33. fxe5 {[%clk
0:00:47.7]} 33... Kd7 {[%clk 0:02:00.8]} 34. Bd3 {[%clk 0:00:28.7]} 34... Kc6
{[%clk 0:01:58.1]} 35. Be4+ {[%clk 0:00:14]} 35... Kc7 {[%clk 0:01:58.1]} 36. h4
{[%clk 0:00:13.2]} 36... Bd7 {[%clk 0:01:56.8]} 37. Bd3 {[%clk 0:00:12.9]} 37...
Bc8 {[%clk 0:01:56.9]} 38. Kd5 {[%clk 0:00:10.6]} 38... dxc5 {[%clk 0:01:50.8]}
39. Kxc5 {[%clk 0:00:10.7]} 39... Bb7 {[%clk 0:01:50.4]} 40. Bc4 {[%clk
0:00:07.3]} 40... Bc8 {[%clk 0:01:50.2]} 41. Bd5 {[%clk 0:00:07.3]} 41... Bd7
{[%clk 0:01:49.5]} 42. Be4 {[%clk 0:00:05.7]} 42... Bb5 {[%clk 0:01:48.3]} 43.
Bd5 {[%clk 0:00:05.9]} 43... Bf1 {[%clk 0:01:47.9]} 44. Bc6 {[%clk 0:00:05.7]}
44... Be2 {[%clk 0:01:46.8]} 45. Ba4 {[%clk 0:00:06.1]} 45... Bd3 {[%clk
0:01:46.2]} 46. Bb3 {[%clk 0:00:06.5]} 46... Be2 {[%clk 0:01:46.3]} 47. Bf7
{[%clk 0:00:06.7]} 47... Bf1 {[%clk 0:01:46.2]} 48. Bg6 {[%clk 0:00:05.8]} 48...
Be2 {[%clk 0:01:46.1]} 49. Bf5 {[%clk 0:00:06.3]} 49... Bf1 {[%clk 0:01:45.8]}
50. Be6 {[%clk 0:00:06.9]} 50... Bb5 {[%clk 0:01:44.9]} 51. Bd5 {[%clk
0:00:06.7]} 51... Bf1 {[%clk 0:01:44.8]} 52. Bc6 {[%clk 0:00:05.9]} 52... Be2
{[%clk 0:01:44]} 53. Bd5 {[%clk 0:00:05.7]} 53... Bf1 {[%clk 0:01:42.9]} 1/2-1/2

[Event "Late-Titled-Tuesday-Blitz-February-06-2024"]
[Site "Chess.com"]
[Date "2024.02.06"]
[Round "9"]
[White "ybothg"]
[Black "falzehope0"]
[Result "0-1"]
[WhiteElo "2506"]
[BlackElo "2371"]
[TimeControl "180+1"]
[EndTime "15:43:47 PST"]
[Termination "falzehope0 won by resignation"]

1. d4 {[%clk 0:02:52.1]} 1... e6 {[%clk 0:02:59.6]} 2. Bf4 {[%clk 0:02:50.1]}
2... d5 {[%clk 0:02:59.8]} 3. e3 {[%clk 0:02:50]} 3... Ne7 {[%clk 0:02:57.2]} 4.
Bd3 {[%clk 0:02:44.1]} 4... f5 {[%clk 0:02:56.3]} 5. h4 {[%clk 0:02:37]} 5...
Ng6 {[%clk 0:02:55.5]} 6. Bg3 {[%clk 0:02:37.1]} 6... Be7 {[%clk 0:02:52.1]} 7.
h5 {[%clk 0:02:37]} 7... Nf8 {[%clk 0:02:51.7]} 8. c4 {[%clk 0:02:29.4]} 8... c6
{[%clk 0:02:50.1]} 9. Nc3 {[%clk 0:02:29.6]} 9... Nfd7 {[%clk 0:02:21]} 10. cxd5
{[%clk 0:02:09.2]} 10... cxd5 {[%clk 0:02:19.8]} 11. Nb5 {[%clk 0:02:09.4]}
11... Qa5+ {[%clk 0:02:12.5]} 12. Kf1 {[%clk 0:02:08.6]} 12... Na6 {[%clk
0:02:10.2]} 13. Nd6+ {[%clk 0:02:06.5]} 13... Kf8 {[%clk 0:02:04.9]} 14. Rc1
{[%clk 0:02:02]} 14... Qd8 {[%clk 0:01:48.5]} 15. Nf3 {[%clk 0:01:16.9]} 15...
Nb6 {[%clk 0:01:46.6]} 16. Nb5 {[%clk 0:01:14.1]} 16... Bd7 {[%clk 0:01:45.5]}
17. Nc7 {[%clk 0:01:10.3]} 17... Nxc7 {[%clk 0:01:34.1]} 18. Bxc7 {[%clk
0:01:11.2]} 18... Qe8 {[%clk 0:01:32.9]} 19. Ne5 {[%clk 0:01:07.5]} 19... Nc8
{[%clk 0:01:16.6]} 20. g4 {[%clk 0:00:45.9]} 20... Nd6 {[%clk 0:01:11.3]} 21.
gxf5 {[%clk 0:00:44.4]} 21... Nxf5 {[%clk 0:01:07.9]} 22. Qg4 {[%clk 0:00:38]}
22... Rc8 {[%clk 0:01:03.7]} 23. Kg2 {[%clk 0:00:27.8]} 23... Kg8 {[%clk
0:01:01.9]} 24. h6 {[%clk 0:00:23.3]} 24... g6 {[%clk 0:00:59.9]} 25. Kh3 {[%clk
0:00:17.6]} 25... Bf6 {[%clk 0:00:57.5]} 26. Qg2 {[%clk 0:00:14.8]} 26... Nxh6
{[%clk 0:00:53.8]} 27. Rhg1 {[%clk 0:00:06.6]} 27... Nf7 {[%clk 0:00:51.2]} 28.
Qg4 {[%clk 0:00:01.4]} 28... Kf8 {[%clk 0:00:45]} 29. Kg3 {[%clk 0:00:01.6]}
29... Rxc7 {[%clk 0:00:43.9]} 30. Rxc7 {[%clk 0:00:01.5]} 30... Nxe5 {[%clk
0:00:44]} 31. Be2 {[%clk 0:00:01.5]} 31... Nxg4 {[%clk 0:00:43.4]} 32. Bxg4
{[%clk 0:00:02.4]} 0-1

[Event "Late-Titled-Tuesday-Blitz-February-06-2024"]
[Site "Chess.com"]
[Date "2024.02.06"]
[Round "9"]
[White "sergiochess83"]
[Black "Polish_fighter3000"]
[Result "0-1"]
[WhiteElo "2918"]
[BlackElo "3055"]
[TimeControl "180+1"]
[EndTime "15:43:48 PST"]
[Termination "Polish_fighter3000 won on time"]

1. e4 {[%clk 0:03:00.9]} 1... c5 {[%clk 0:02:58]} 2. Nf3 {[%clk 0:03:00.6]} 2...
d6 {[%clk 0:02:58.3]} 3. Bb5+ {[%clk 0:03:00]} 3... Bd7 {[%clk 0:02:57]} 4. c4
{[%clk 0:02:59.6]} 4... g6 {[%clk 0:02:55.7]} 5. Nc3 {[%clk 0:02:59.1]} 5... Bg7
{[%clk 0:02:55.5]} 6. d4 {[%clk 0:02:59.3]} 6... cxd4 {[%clk 0:02:55]} 7. Nxd4
{[%clk 0:03:00.2]} 7... Nf6 {[%clk 0:02:53.9]} 8. O-O {[%clk 0:02:54.2]} 8...
Nc6 {[%clk 0:02:52.8]} 9. Bxc6 {[%clk 0:02:40.3]} 9... bxc6 {[%clk 0:02:53.7]}
10. Re1 {[%clk 0:02:39.6]} 10... O-O {[%clk 0:02:49.1]} 11. Bg5 {[%clk
0:02:33.3]} 11... h6 {[%clk 0:02:46]} 12. Bh4 {[%clk 0:02:26.9]} 12... Rb8
{[%clk 0:02:40.4]} 13. Qd2 {[%clk 0:02:21]} 13... g5 {[%clk 0:02:39.7]} 14. Bg3
{[%clk 0:02:20.5]} 14... Nh5 {[%clk 0:02:40.3]} 15. Nf5 {[%clk 0:02:13.4]} 15...
Bxf5 {[%clk 0:02:33.6]} 16. exf5 {[%clk 0:02:14.3]} 16... Qd7 {[%clk 0:02:33]}
17. Qc2 {[%clk 0:01:58.6]} 17... Rfe8 {[%clk 0:02:08.5]} 18. Rad1 {[%clk
0:01:47]} 18... Bxc3 {[%clk 0:01:56.1]} 19. bxc3 {[%clk 0:01:44.7]} 19... c5
{[%clk 0:01:56.3]} 20. Qe4 {[%clk 0:01:30.4]} 20... Ng7 {[%clk 0:01:42.1]} 21.
f6 {[%clk 0:01:12.1]} 21... exf6 {[%clk 0:01:43]} 22. Qd5 {[%clk 0:01:07.2]}
22... Rxe1+ {[%clk 0:01:20.4]} 23. Rxe1 {[%clk 0:01:06.8]} 23... Qe6 {[%clk
0:01:10.5]} 24. Qd1 {[%clk 0:00:30.7]} 24... Qxc4 {[%clk 0:01:09.1]} 25. Qxd6
{[%clk 0:00:30.6]} 25... Rb6 {[%clk 0:01:09]} 26. Qd8+ {[%clk 0:00:20.8]} 26...
Kh7 {[%clk 0:01:08.8]} 27. Qc7 {[%clk 0:00:13.5]} 27... Qxc3 {[%clk 0:00:54.2]}
28. Rf1 {[%clk 0:00:13.7]} 28... Qc4 {[%clk 0:00:48.4]} 29. Qxa7 {[%clk
0:00:11]} 29... Ra6 {[%clk 0:00:48.1]} 30. Qe7 {[%clk 0:00:11.1]} 30... Kg6
{[%clk 0:00:47.8]} 31. h3 {[%clk 0:00:07]} 31... Rxa2 {[%clk 0:00:47.1]} 0-1

[Event "Late-Titled-Tuesday-Blitz-February-06-2024"]
[Site "Chess.com"]
[Date "2024.02.06"]
[Round "9"]
[White "LyonBeast"]
[Black "Hikaru"]
[Result "1-0"]
[WhiteElo "3175"]
[BlackElo "3319"]
[TimeControl "180+1"]
[EndTime "15:43:49 PST"]
[Termination "LyonBeast won by resignation"]

1. e4 {[%clk 0:03:00.9]} 1... e5 {[%clk 0:03:00.2]} 2. Nf3 {[%clk 0:03:01.1]}
2... Nc6 {[%clk 0:03:00.9]} 3. Bb5 {[%clk 0:02:59.4]} 3... Nf6 {[%clk
0:03:01.3]} 4. O-O {[%clk 0:02:59.4]} 4... Nxe4 {[%clk 0:03:01.9]} 5. d4 {[%clk
0:02:59.9]} 5... Nd6 {[%clk 0:03:02.7]} 6. Bxc6 {[%clk 0:03:00.5]} 6... dxc6
{[%clk 0:03:03.6]} 7. dxe5 {[%clk 0:03:01.1]} 7... Nf5 {[%clk 0:03:04.3]} 8.
Qxd8+ {[%clk 0:03:01.6]} 8... Kxd8 {[%clk 0:03:05.2]} 9. Nc3 {[%clk 0:03:02.2]}
9... Bd7 {[%clk 0:03:05.9]} 10. h3 {[%clk 0:03:01.8]} 10... h6 {[%clk
0:03:05.7]} 11. b3 {[%clk 0:03:02.2]} 11... Kc8 {[%clk 0:03:04.6]} 12. Bb2
{[%clk 0:03:02]} 12... a5 {[%clk 0:03:05.1]} 13. a4 {[%clk 0:03:02.3]} 13... b6
{[%clk 0:03:05.1]} 14. Rad1 {[%clk 0:03:01.3]} 14... Ne7 {[%clk 0:03:05.3]} 15.
Rfe1 {[%clk 0:02:58.3]} 15... Ng6 {[%clk 0:03:03.9]} 16. Ne2 {[%clk 0:02:58.6]}
16... c5 {[%clk 0:03:04]} 17. h4 {[%clk 0:02:58.9]} 17... Bg4 {[%clk 0:02:57.8]}
18. Nh2 {[%clk 0:02:59]} 18... Bxe2 {[%clk 0:02:56]} 19. Rxe2 {[%clk 0:02:59.9]}
19... Nf4 {[%clk 0:02:55.8]} 20. Re4 {[%clk 0:02:53.8]} 20... Ne6 {[%clk
0:02:54.3]} 21. Nf1 {[%clk 0:02:53.8]} 21... h5 {[%clk 0:02:48.2]} 22. g3 {[%clk
0:02:43.1]} 22... g6 {[%clk 0:02:44.7]} 23. Ree1 {[%clk 0:02:35.7]} 23... c4
{[%clk 0:02:38.1]} 24. bxc4 {[%clk 0:02:35.5]} 24... Kb7 {[%clk 0:02:34.5]} 25.
Ne3 {[%clk 0:02:32.1]} 25... Bc5 {[%clk 0:02:30.2]} 26. Nd5 {[%clk 0:02:30.5]}
26... Rad8 {[%clk 0:02:28.9]} 27. Nf4 {[%clk 0:02:24.7]} 27... Bb4 {[%clk
0:02:22.8]} 28. Nxe6 {[%clk 0:02:16.8]} 28... fxe6 {[%clk 0:02:22.8]} 29. c3
{[%clk 0:02:17.1]} 29... Be7 {[%clk 0:02:21.3]} 30. Bc1 {[%clk 0:02:15.4]} 30...
Kc6 {[%clk 0:02:06.3]} 31. Be3 {[%clk 0:02:15.4]} 31... Bc5 {[%clk 0:02:06.7]}
32. Bd4 {[%clk 0:02:11.3]} 32... Rh7 {[%clk 0:01:55.7]} 33. Kg2 {[%clk
0:02:08.4]} 33... Rhd7 {[%clk 0:01:36.8]} 34. Re4 {[%clk 0:02:08.1]} 34... Kb7
{[%clk 0:01:37.4]} 35. Kf3 {[%clk 0:01:52.6]} 35... Bf8 {[%clk 0:01:34.8]} 36.
Rb1 {[%clk 0:01:52]} 36... Kc6 {[%clk 0:01:09.5]} 37. Rb5 {[%clk 0:01:46.9]}
37... Rf7+ {[%clk 0:01:00.6]} 38. Ke2 {[%clk 0:01:46.5]} 38... Be7 {[%clk
0:00:59.2]} 39. Be3 {[%clk 0:01:44.6]} 39... Ra8 {[%clk 0:00:57.9]} 40. c5
{[%clk 0:01:43.7]} 40... Bd8 {[%clk 0:00:39.1]} 41. Rc4 {[%clk 0:01:30.8]} 41...
Kb7 {[%clk 0:00:39.4]} 42. c6+ {[%clk 0:01:23.2]} 42... Ka6 {[%clk 0:00:39.7]}
43. Rd4 {[%clk 0:01:22.6]} 43... Rc8 {[%clk 0:00:29.8]} 44. c4 {[%clk
0:01:20.6]} 44... Rh7 {[%clk 0:00:26.5]} 45. c5 {[%clk 0:01:11.6]} 45... bxc5
{[%clk 0:00:22.7]} 46. Rd1 {[%clk 0:01:11]} 46... Be7 {[%clk 0:00:16.5]} 47. Rd7
{[%clk 0:01:10.6]} 47... Rg7 {[%clk 0:00:16.2]} 48. Bxc5 {[%clk 0:01:05.7]} 1-0

[Event "Late-Titled-Tuesday-Blitz-February-06-2024"]
[Site "Chess.com"]
[Date "2024.02.06"]
[Round "9"]
[White "TheoSlade"]
[Black "aleksanchess"]
[Result "0-1"]
[WhiteElo "2440"]
[BlackElo "2339"]
[TimeControl "180+1"]
[EndTime "15:43:49 PST"]
[Termination "aleksanchess won by checkmate"]

1. d4 {[%clk 0:03:00.9]} 1... d5 {[%clk 0:02:58.3]} 2. c4 {[%clk 0:03:01.2]}
2... e6 {[%clk 0:02:58.4]} 3. Nf3 {[%clk 0:03:01.7]} 3... c6 {[%clk 0:02:57.5]}
4. e3 {[%clk 0:03:01]} 4... Bd6 {[%clk 0:02:56]} 5. Qc2 {[%clk 0:02:55.3]} 5...
f5 {[%clk 0:02:55.4]} 6. Bd3 {[%clk 0:02:55.5]} 6... Nf6 {[%clk 0:02:55.1]} 7.
O-O {[%clk 0:02:51.7]} 7... Ne4 {[%clk 0:02:54.9]} 8. Nc3 {[%clk 0:02:46]} 8...
O-O {[%clk 0:02:54.2]} 9. Ne5 {[%clk 0:02:44.9]} 9... Nd7 {[%clk 0:02:51.3]} 10.
Nxd7 {[%clk 0:02:43.1]} 10... Bxd7 {[%clk 0:02:50.7]} 11. f4 {[%clk 0:02:30.8]}
11... g5 {[%clk 0:02:40.3]} 12. g3 {[%clk 0:02:28.4]} 12... g4 {[%clk
0:02:27.9]} 13. Bxe4 {[%clk 0:02:23.2]} 13... fxe4 {[%clk 0:02:22.1]} 14. cxd5
{[%clk 0:02:16.8]} 14... cxd5 {[%clk 0:02:12.4]} 15. Qb3 {[%clk 0:02:13.8]}
15... Bc6 {[%clk 0:01:53.9]} 16. Bd2 {[%clk 0:02:09.8]} 16... h5 {[%clk
0:01:53.1]} 17. f5 {[%clk 0:02:04.7]} 17... h4 {[%clk 0:01:43.3]} 18. Kg2 {[%clk
0:01:59.9]} 18... Qg5 {[%clk 0:01:03.7]} 19. fxe6 {[%clk 0:01:51.5]} 19... Rf3
{[%clk 0:01:03.6]} 20. Ne2 {[%clk 0:01:31.8]} 20... Qh6 {[%clk 0:00:52.8]} 21.
Rh1 {[%clk 0:01:25]} 21... Raf8 {[%clk 0:00:46.6]} 22. Nf4 {[%clk 0:01:02.3]}
22... Bxf4 {[%clk 0:00:45.9]} 23. gxf4 {[%clk 0:01:02.5]} 23... R8xf4 {[%clk
0:00:41.5]} 24. exf4 {[%clk 0:00:59.9]} 24... Rxb3 {[%clk 0:00:40.7]} 25. axb3
{[%clk 0:01:00.8]} 25... Qxe6 {[%clk 0:00:38.2]} 26. Rxa7 {[%clk 0:00:56.5]}
26... e3 {[%clk 0:00:38.1]} 27. Ra8+ {[%clk 0:00:49.2]} 27... Kg7 {[%clk
0:00:37.4]} 28. Re1 {[%clk 0:00:30.8]} 28... Qe4+ {[%clk 0:00:30.4]} 29. Kf1
{[%clk 0:00:25.8]} 29... exd2 {[%clk 0:00:27.6]} 30. Rxe4 {[%clk 0:00:26.3]}
30... d1=Q+ {[%clk 0:00:26.9]} 31. Re1 {[%clk 0:00:26.9]} 31... Bb5+ {[%clk
0:00:23.4]} 32. Kg1 {[%clk 0:00:27.4]} 32... Qxe1+ {[%clk 0:00:23.1]} 33. Kg2
{[%clk 0:00:27.5]} 33... Qf1# {[%clk 0:00:22.5]} 0-1

[Event "Late-Titled-Tuesday-Blitz-February-06-2024"]
[Site "Chess.com"]
[Date "2024.02.06"]
[Round "9"]
[White "edgarhay012"]
[Black "Arystanner"]
[Result "0-1"]
[WhiteElo "2589"]
[BlackElo "2851"]
[TimeControl "180+1"]
[EndTime "15:43:52 PST"]
[Termination "Arystanner won by resignation"]

1. e4 {[%clk 0:03:00.9]} 1... c5 {[%clk 0:03:00.2]} 2. Nc3 {[%clk 0:03:01.4]}
2... e6 {[%clk 0:03:01]} 3. Nf3 {[%clk 0:03:01]} 3... Nc6 {[%clk 0:03:01.7]} 4.
Bb5 {[%clk 0:03:00.9]} 4... Nd4 {[%clk 0:03:01.7]} 5. Bd3 {[%clk 0:03:01.6]}
5... Nc6 {[%clk 0:03:01]} 6. Bb5 {[%clk 0:03:00.2]} 6... Nd4 {[%clk 0:03:01.6]}
7. Bc4 {[%clk 0:02:58.6]} 7... Ne7 {[%clk 0:03:00.7]} 8. O-O {[%clk 0:02:56.6]}
8... Nec6 {[%clk 0:03:00.8]} 9. Nxd4 {[%clk 0:02:44.7]} 9... Nxd4 {[%clk
0:03:00.3]} 10. d3 {[%clk 0:02:42.9]} 10... Be7 {[%clk 0:02:59.4]} 11. Be3
{[%clk 0:02:37.3]} 11... O-O {[%clk 0:02:59.1]} 12. Kh1 {[%clk 0:02:28.5]} 12...
a6 {[%clk 0:02:57.4]} 13. a4 {[%clk 0:02:28.7]} 13... b6 {[%clk 0:02:48.8]} 14.
Bxd4 {[%clk 0:02:25.1]} 14... cxd4 {[%clk 0:02:49.2]} 15. Ne2 {[%clk 0:02:25.3]}
15... e5 {[%clk 0:02:47.4]} 16. f4 {[%clk 0:02:25.4]} 16... d6 {[%clk
0:02:47.7]} 17. fxe5 {[%clk 0:02:16.9]} 17... dxe5 {[%clk 0:02:47.1]} 18. Ng3
{[%clk 0:02:17.8]} 18... g6 {[%clk 0:02:42]} 19. Qf3 {[%clk 0:02:07.8]} 19...
Kg7 {[%clk 0:02:41.3]} 20. Rae1 {[%clk 0:01:23.1]} 20... Ra7 {[%clk 0:02:39.5]}
21. Rf2 {[%clk 0:01:10.6]} 21... Bg5 {[%clk 0:02:37]} 22. Ref1 {[%clk
0:01:02.7]} 22... Be3 {[%clk 0:02:35.3]} 23. Re2 {[%clk 0:01:03.2]} 23... Bf4
{[%clk 0:02:35.2]} 24. Ref2 {[%clk 0:00:52.8]} 24... Qh4 {[%clk 0:02:29.3]} 25.
Nf5+ {[%clk 0:00:33.6]} 25... gxf5 {[%clk 0:02:28.3]} 26. g3 {[%clk 0:00:33]}
26... Bxg3 {[%clk 0:02:23.9]} 27. Qxg3+ {[%clk 0:00:20.3]} 27... Qxg3 {[%clk
0:02:24]} 28. hxg3 {[%clk 0:00:21.2]} 28... fxe4 {[%clk 0:02:24.8]} 29. dxe4
{[%clk 0:00:17.6]} 29... f6 {[%clk 0:02:19.9]} 30. g4 {[%clk 0:00:06.5]} 30...
Bxg4 {[%clk 0:02:09.7]} 31. Rg1 {[%clk 0:00:07]} 31... h5 {[%clk 0:02:10.3]} 32.
Be6 {[%clk 0:00:07.7]} 32... Rc7 {[%clk 0:02:00.6]} 33. Rh2 {[%clk 0:00:07.9]}
33... Re7 {[%clk 0:01:39.1]} 34. Bf5 {[%clk 0:00:05.3]} 34... Kf7 {[%clk
0:01:36.6]} 35. Bxg4 {[%clk 0:00:02]} 35... hxg4 {[%clk 0:01:37.3]} 36. Rxg4
{[%clk 0:00:02.9]} 36... Ke6 {[%clk 0:01:37.6]} 37. Rg6 {[%clk 0:00:02.6]} 37...
Ree8 {[%clk 0:01:31.4]} 38. Rhh6 {[%clk 0:00:02.6]} 38... Rc8 {[%clk 0:01:26.9]}
39. c3 {[%clk 0:00:01.9]} 39... dxc3 {[%clk 0:01:26.8]} 40. bxc3 {[%clk
0:00:02.8]} 40... Rxc3 {[%clk 0:01:26.9]} 41. Rg7 {[%clk 0:00:03.3]} 41... Rc4
{[%clk 0:01:26]} 42. Rhh7 {[%clk 0:00:03.8]} 42... Rxe4 {[%clk 0:01:26.2]} 43.
Re7+ {[%clk 0:00:04.3]} 43... Kd5 {[%clk 0:01:26.3]} 44. Rb7 {[%clk 0:00:04.8]}
44... Rb4 {[%clk 0:01:20.9]} 45. a5 {[%clk 0:00:04.4]} 45... bxa5 {[%clk
0:01:21.1]} 46. Ra7 {[%clk 0:00:05]} 46... Rb6 {[%clk 0:01:20.7]} 47. Rhf7
{[%clk 0:00:05.6]} 47... Rxf7 {[%clk 0:01:20.8]} 48. Rxf7 {[%clk 0:00:06.5]}
48... a4 {[%clk 0:01:21.6]} 49. Rb7 {[%clk 0:00:06.7]} 49... Rxb7 {[%clk
0:01:21.8]} 0-1